[Event "RUS-chT Rapid Men 2018"]
[Site "Sochi"]
[Date "2018.10.08"]
[Round "1"]
[White "Potkin, Vladimir"]
[Black "Kozak, Alexander"]
[Result "1-0"]
[ECO "A27"]
[WhiteElo "2597"]
[BlackElo "2262"]
[Annotator "ChessBase"]
[PlyCount "59"]
[EventDate "2018.10.05"]
[EventType "swiss"]
[EventCountry "RUS"]
[SourceTitle "playchess.com"]
[Source "ChessBase"]
[SourceQuality "1"]
[TimeControl "900+10"]

1. c4 {[%emt 0:00:00]} e5 {[%emt 0:00:00]} 2. Nc3 {[%emt 0:00:00]} Nc6 {[%emt 0:00:57]} 3. Nf3 {[%emt 0:00:00]} g6 {[%emt 0:00:07]} 4. d4 {[%emt 0:00:30]} exd4 {[%emt 0:00:11]} 5. Nxd4 {[%emt 0:00:03]} Bg7 {[%emt 0:00:02]} 6. Nxc6 {[%emt 0:00:09]} bxc6 {[%emt 0:00:02]} 7. g3 {[%emt 0:00:08]} Ne7 {[%emt 0:00:40]} 8. Bg2 {[%emt 0:00:02]} O-O {[%emt 0:00:02]} 9. O-O {[%emt 0:00:02]} d6 {[%emt 0:00:53]} 10. Qc2 {[%emt 0:00:06]} Be6 {[%emt 0:00:41]} 11. b3 {[%emt 0:00:04]} Qd7 {[%emt 0:00:03]} 12. Bb2 {[%emt 0:00:09]} Bh3 {[%emt 0:00:11]} 13. Ne4 {[%emt 0:00:39]} Bxg2 {[%emt 0:00:09]} 14. Kxg2 {[%emt 0:00:03]} Qe6 {[%emt 0:02:17]} 15. Bxg7 {[%emt 0:00:08]} Kxg7 {[%emt 0:00:01]} 16. Qc3+ {[%emt 0:01:45]} f6 {[%emt 0:00:22]} 17. Ng5 {[%emt 0:00:18]} Qf5 {[%emt 0:00:10]} 18. f4 {[%emt 0:00:36]} Kg8 {[%emt 0:02:53]} 19. e4 {[%emt 0:00:06]} Qd7 {[%emt 0:00:05]} 20. Nf3 {[%emt 0:00:05]} c5 {[%emt 0:00:02]} 21. Rae1 {[%emt 0:01:03]} Rae8 {[%emt 0:00:17]} 22. e5 {[%emt 0:02:58]} fxe5 {[%emt 0:00:32]} 23. fxe5 {[%emt 0:00:01]} Nf5 {[%emt 0:00:54]} 24. Qd3 {[%emt 0:00:16]} Qc6 {[%emt 0:02:12]} 25. Qe4 {[%emt 0:01:21]} Qxe4 {[%emt 0:00:30]} 26. Rxe4 {[%emt 0:00:01]} Re7 {[%emt 0:00:18]} 27. Rfe1 {[%emt 0:00:20]} Rfe8 {[%emt 0:00:03]} 28. g4 {[%emt 0:02:01]} Nd4 {[%emt 0:00:20]} 29. Nxd4 {[%emt 0:00:11]} cxd4 {[%emt 0:00:01]} 30. exd6 {[%emt 0:00:40]} 1-0

[Event "RUS-chT Rapid Men 2018"]
[Site "Sochi"]
[Date "2018.10.08"]
[Round "1"]
[White "Kryakvin, Dmitry"]
[Black "Babayan, Arman S."]
[Result "1-0"]
[ECO "D55"]
[WhiteElo "2595"]
[BlackElo "1673"]
[Annotator "ChessBase"]
[PlyCount "71"]
[EventDate "2018.10.05"]
[EventType "swiss"]
[EventCountry "RUS"]
[SourceTitle "playchess.com"]
[Source "ChessBase"]
[SourceQuality "1"]
[TimeControl "900+10"]

1. d4 {[%emt 0:00:00]} d5 {[%emt 0:02:10]} 2. c4 {[%emt 0:00:00]} e6 {[%emt 0:00:05]} 3. Nf3 {[%emt 0:00:00]} Nf6 {[%emt 0:00:04]} 4. Nc3 {[%emt 0:00:04]} Be7 {[%emt 0:00:28]} 5. Bg5 {[%emt 0:00:05]} O-O {[%emt 0:00:52]} 6. e3 {[%emt 0:00:02]} b6 {[%emt 0:00:53]} 7. Rc1 {[%emt 0:00:12]} Bb7 {[%emt 0:01:48]} 8. Bxf6 {[%emt 0:00:06]} Bxf6 {[%emt 0:00:16]} 9. cxd5 {[%emt 0:00:03]} exd5 {[%emt 0:00:20]} 10. Bd3 {[%emt 0:00:03]} c6 {[%emt 0:04:03]} 11. O-O {[%emt 0:00:10]} Nd7 {[%emt 0:00:35]} 12. b4 {[%emt 0:00:06]} Rc8 {[%emt 0:00:36]} 13. Qb3 {[%emt 0:00:06]} Be7 {[%emt 0:02:41]} 14. b5 {[%emt 0:00:26]} Nf6 {[%emt 0:00:01]} 15. bxc6 {[%emt 0:00:10]} Rxc6 {[%emt 0:01:31]} 16. Ne5 {[%emt 0:00:08]} Rc8 {[%emt 0:00:01]} 17. Bf5 {[%emt 0:01:27]} Ra8 {[%emt 0:00:41]} 18. Rc2 {[%emt 0:00:39]} g6 {[%emt 0:00:18]} 19. Bh3 {[%emt 0:00:17]} Bd6 {[%emt 0:00:26]} 20. Rfc1 {[%emt 0:00:07]} Re8 {[%emt 0:00:08]} 21. f4 {[%emt 0:00:14]} Bxe5 {[%emt 0:00:18]} 22. dxe5 {[%emt 0:01:25]} Ne4 {[%emt 0:00:09]} 23. Nxe4 {[%emt 0:00:35]} dxe4 {[%emt 0:00:02]} 24. Rc7 {[%emt 0:00:04]} Bd5 {[%emt 0:00:11]} 25. Qa4 {[%emt 0:00:13]} Be6 {[%emt 0:00:19]} 26. Bxe6 {[%emt 0:00:08]} Rxe6 {[%emt 0:00:09]} 27. Qxe4 {[%emt 0:00:11]} Re8 {[%emt 0:00:08]} 28. h3 {[%emt 0:00:23]} Qd2 {[%emt 0:00:08]} 29. R7c2 {[%emt 0:01:18]} Qd7 {[%emt 0:00:03]} 30. Qc6 {[%emt 0:00:33]} Qd3 {[%emt 0:00:11]} 31. Rc3 {[%emt 0:00:15]} Qd2 {[%emt 0:00:06]} 32. R1c2 {[%emt 0:00:09]} Qd1+ {[%emt 0:00:19]} 33. Kh2 {[%emt 0:00:01]} Rad8 {[%emt 0:00:07]} 34. Qb7 {[%emt 0:00:20]} h5 {[%emt 0:00:18]} 35. Rc7 {[%emt 0:00:14]} Rf8 {[%emt 0:00:06]} 36. e6 {[%emt 0:00:07]} 1-0

[Event "RUS-chT Rapid Men 2018"]
[Site "Sochi"]
[Date "2018.10.08"]
[Round "1"]
[White "Bocharov, Dmitry"]
[Black "Dudin, Gleb"]
[Result "1-0"]
[ECO "A13"]
[WhiteElo "2557"]
[BlackElo "2178"]
[Annotator "ChessBase"]
[PlyCount "45"]
[EventDate "2018.10.05"]
[EventType "swiss"]
[EventCountry "RUS"]
[SourceTitle "playchess.com"]
[Source "ChessBase"]
[SourceQuality "1"]
[TimeControl "900+10"]

1. c4 {[%emt 0:00:00]} e6 {[%emt 0:00:13]} 2. Nf3 {[%emt 0:00:00]} Nf6 {[%emt 0:00:11]} 3. g3 {[%emt 0:00:05]} d5 {[%emt 0:01:08]} 4. Bg2 {[%emt 0:00:07]} c6 {[%emt 0:00:27]} 5. b3 {[%emt 0:01:05]} Bd6 {[%emt 0:00:20]} 6. Bb2 {[%emt 0:00:07]} Nbd7 {[%emt 0:00:22]} 7. d4 {[%emt 0:02:01]} O-O {[%emt 0:00:50]} 8. O-O {[%emt 0:00:03]} Qe7 {[%emt 0:04:33]} 9. Nc3 {[%emt 0:00:31]} e5 {[%emt 0:04:16]} 10. dxe5 {[%emt 0:02:28]} Nxe5 {[%emt 0:00:14]} 11. cxd5 {[%emt 0:00:03]} Rd8 {[%emt 0:01:52]} 12. Nd4 {[%emt 0:02:22]} cxd5 {[%emt 0:00:43]} 13. Rc1 {[%emt 0:00:02]} a6 {[%emt 0:00:37]} 14. Qc2 {[%emt 0:00:50]} Be6 {[%emt 0:00:52]} 15. Nf5 {[%emt 0:00:19]} Bxf5 {[%emt 0:00:04]} 16. Qxf5 {[%emt 0:00:03]} g6 {[%emt 0:00:38]} 17. Qg5 {[%emt 0:00:36]} d4 {[%emt 0:00:18]} 18. Na4 {[%emt 0:00:12]} b5 {[%emt 0:00:09]} 19. Bxa8 {[%emt 0:00:13]} Rxa8 {[%emt 0:00:06]} 20. Nb6 {[%emt 0:00:03]} Rb8 {[%emt 0:00:01]} 21. Nc8 {[%emt 0:00:53]} Qe6 {[%emt 0:00:06]} 22. Nxd6 {[%emt 0:00:06]} Qxd6 {[%emt 0:00:02]} 23. Bxd4 {[%emt 0:00:51]} 1-0

[Event "RUS-chT Rapid Men 2018"]
[Site "Sochi"]
[Date "2018.10.08"]
[Round "1"]
[White "Moiseenko, Vadim"]
[Black "Kharitonov, Egor"]
[Result "1-0"]
[ECO "B23"]
[WhiteElo "2492"]
[BlackElo "2387"]
[Annotator "ChessBase"]
[PlyCount "76"]
[EventDate "2018.10.05"]
[EventType "swiss"]
[EventCountry "RUS"]
[SourceTitle "playchess.com"]
[Source "ChessBase"]
[SourceQuality "1"]
[TimeControl "900+10"]

1. e4 {[%emt 0:00:00]} c5 {[%emt 0:00:00]} 2. Nc3 {[%emt 0:00:00]} a6 {[%emt 0:00:53]} 3. f4 {[%emt 0:02:21]} b5 {[%emt 0:00:07]} 4. Nf3 {[%emt 0:00:09]} Bb7 {[%emt 0:00:02]} 5. d3 {[%emt 0:00:10]} e6 {[%emt 0:00:15]} 6. g3 {[%emt 0:00:09]} Be7 {[%emt 0:00:29]} 7. Bg2 {[%emt 0:00:01]} Nc6 {[%emt 0:00:08]} 8. O-O {[%emt 0:00:03]} d6 {[%emt 0:00:03]} 9. Be3 {[%emt 0:00:05]} Nf6 {[%emt 0:00:02]} 10. h3 {[%emt 0:00:04]} Qc7 {[%emt 0:02:27]} 11. a3 {[%emt 0:00:26]} Rd8 {[%emt 0:01:21]} 12. g4 {[%emt 0:00:24]} d5 {[%emt 0:00:37]} 13. exd5 {[%emt 0:00:10]} Nxd5 {[%emt 0:00:05]} 14. Nxd5 {[%emt 0:00:02]} Rxd5 {[%emt 0:00:02]} 15. Qe1 {[%emt 0:00:44]} O-O {[%emt 0:01:00]} 16. Rd1 {[%emt 0:00:11]} Rdd8 {[%emt 0:00:43]} 17. Qf2 {[%emt 0:00:05]} Nd4 {[%emt 0:01:07]} 18. Rde1 {[%emt 0:02:12]} Nxf3+ {[%emt 0:02:08]} 19. Bxf3 {[%emt 0:00:01]} Bxf3 {[%emt 0:00:02]} 20. Qxf3 {[%emt 0:00:02]} Bf6 {[%emt 0:00:02]} 21. Bc1 {[%emt 0:00:29]} c4 {[%emt 0:00:23]} 22. dxc4 {[%emt 0:00:08]} Qxc4 {[%emt 0:00:03]} 23. Re2 {[%emt 0:00:14]} Rd5 {[%emt 0:02:15]} 24. Kh2 {[%emt 0:01:00]} Rfd8 {[%emt 0:00:22]} 25. Rg2 {[%emt 0:01:02]} Qc7 {[%emt 0:01:00]} 26. c3 {[%emt 0:01:08]} Qd6 {[%emt 0:00:17]} 27. Be3 {[%emt 0:00:11]} Rd3 {[%emt 0:00:41]} 28. Qe4 {[%emt 0:00:16]} Qd5 {[%emt 0:00:13]} 29. Qxd5 {[%emt 0:00:01]} R8xd5 {[%emt 0:00:02]} 30. Re2 {[%emt 0:00:07]} h6 {[%emt 0:00:12]} 31. Kg2 {[%emt 0:00:25]} a5 {[%emt 0:00:19]} 32. Rc1 {[%emt 0:00:30]} Kh7 {[%emt 0:00:42]} 33. Kf3 {[%emt 0:01:46]} Kg6 34. Ke4 Be7 {[%emt 0:01:06]} 35. f5+ {[%emt 0:00:29]} Kh7 {[%emt 0:00:16]} 36. fxe6 {[%emt 0:00:02]} fxe6 {[%emt 0:00:01]} 37. Rf1 {[%emt 0:00:08]} Kg6 {[%emt 0:00:03]} 38. Rf3 {[%emt 0:00:51]} Bf6 {[%emt 0:00:15]} 1-0

[Event "RUS-chT Rapid Men 2018"]
[Site "Sochi"]
[Date "2018.10.08"]
[Round "1"]
[White "Hasangatin, Ramil"]
[Black "Uzhva, Andrey"]
[Result "1-0"]
[ECO "A48"]
[WhiteElo "2485"]
[BlackElo "2270"]
[Annotator "RC"]
[PlyCount "75"]
[EventDate "2018.10.05"]
[EventType "swiss"]
[EventCountry "RUS"]
[SourceTitle "playchess.com"]
[Source "ChessBase"]
[SourceQuality "1"]
[TimeControl "900+10"]

1. d4 {[%emt 0:00:00]} Nf6 {[%emt 0:01:35]} 2. Nf3 {[%emt 0:00:00]} g6 {[%emt 0:00:02]} 3. Nc3 {[%emt 0:00:00]} d5 {[%emt 0:00:05]} 4. Bf4 {[%emt 0:00:01]} Bg7 {[%emt 0:00:09]} 5. Nb5 {[%emt 0:00:02]} Na6 {[%emt 0:00:09]} 6. e3 {[%emt 0:00:01]} c6 {[%emt 0:01:49]} 7. Nc3 {[%emt 0:00:01]} Qa5 {[%emt 0:00:33]} 8. Nd2 {[%emt 0:00:52]} b5 {[%emt 0:00:50]} 9. Be2 {[%emt 0:01:03]} Nd7 {[%emt 0:01:51]} 10. Nb3 {[%emt 0:01:04]} Qd8 {[%emt 0:01:10]} 11. a4 {[%emt 0:00:12]} b4 {[%emt 0:00:20]} 12. Na2 {[%emt 0:00:01]} e5 {[%emt 0:00:36]} 13. Bg3 {[%emt 0:00:44]} Qe7 {[%emt 0:00:23]} 14. O-O {[%emt 0:00:43]} Rb8 {[%emt 0:01:34]} 15. Re1 {[%emt 0:00:04]} O-O {[%emt 0:00:08]} 16. Qd2 {[%emt 0:00:20]} Nc7 {[%emt 0:00:32]} 17. Bf3 {[%emt 0:02:09]} f5 {[%emt 0:00:55]} 18. Na5 {[%emt 0:01:28]} Rb6 {[%emt 0:00:08]} 19. c3 {[%emt 0:00:01]} bxc3 {[%emt 0:00:47]} 20. Qxc3 {[%emt 0:00:01]} Qf6 {[%emt 0:00:39]} 21. h3 {[%emt 0:03:14]} Ne6 {[%emt 0:01:59]} 22. Nxc6 {[%emt 0:00:49]} e4 {[%emt 0:00:02]} 23. Bd1 {[%emt 0:02:48]} f4 {[%emt 0:00:04]} 24. exf4 {[%emt 0:00:06]} Nxf4 {[%emt 0:00:24]} 25. Nab4 {[%emt 0:00:59]} Bb7 {[%emt 0:00:39]} 26. Rc1 {[%emt 0:00:21]} Bxc6 {[%emt 0:00:36]} 27. Nxc6 {[%emt 0:00:02]} Nd3 {[%emt 0:00:02]} 28. Bb3 {[%emt 0:00:32]} Qg5 {[%emt 0:00:56]} 29. h4 {[%emt 0:00:31]} Qh5 {[%emt 0:00:40]} 30. Bxd5+ Kh8 31. Bxe4 {[%emt 0:00:13]} Nxe1 {[%emt 0:00:01]} 32. Rxe1 {[%emt 0:00:10]} Nf6 {[%emt 0:00:07]} 33. Bf3 {[%emt 0:00:03]} Qh6 {[%emt 0:00:00]} 34. a5 {[%emt 0:00:15]} Rb5 {[%emt 0:00:07]} 35. Ne5 {[%emt 0:00:04]} Nh5 {[%emt 0:00:06]} 36. Qc4 {[%emt 0:00:08]} Nxg3 {[%emt 0:00:44]} 37. Qxb5 {[%emt 0:00:11]} Nf5 {[%emt 0:00:14]} 38. Qd5 {[%emt 0:00:05]} 1-0

[Event "RUS-chT Rapid Men 2018"]
[Site "Sochi"]
[Date "2018.10.08"]
[Round "1"]
[White "Apryshko, Gleb"]
[Black "Grigoriants, Boris"]
[Result "1-0"]
[ECO "C47"]
[WhiteElo "2399"]
[BlackElo "1914"]
[Annotator "NA"]
[PlyCount "53"]
[EventDate "2018.10.05"]
[EventType "swiss"]
[EventCountry "RUS"]
[SourceTitle "playchess.com"]
[Source "ChessBase"]
[SourceQuality "1"]
[TimeControl "900+10"]

1. e4 {[%emt 0:00:26]} e5 {[%emt 0:01:00]} 2. Nf3 {[%emt 0:00:08]} Nc6 {[%emt 0:00:02]} 3. Nc3 {[%emt 0:00:02]} Nf6 {[%emt 0:00:01]} 4. a3 {[%emt 0:00:01]} a6 {[%emt 0:01:05]} 5. d4 {[%emt 0:00:01]} exd4 {[%emt 0:01:55]} 6. Nxd4 {[%emt 0:00:01]} Bc5 {[%emt 0:00:07]} 7. Nxc6 {[%emt 0:00:13]} dxc6 {[%emt 0:00:42]} 8. Qxd8+ {[%emt 0:00:14]} Kxd8 {[%emt 0:00:01]} 9. Bg5 {[%emt 0:00:08]} Be7 {[%emt 0:02:43]} 10. O-O-O+ {[%emt 0:00:42]} Ke8 {[%emt 0:00:24]} 11. Bf4 {[%emt 0:00:51]} Ng4 {[%emt 0:00:47]} 12. Rd2 {[%emt 0:00:01]} Bd6 {[%emt 0:00:14]} 13. Bxd6 {[%emt 0:00:05]} cxd6 {[%emt 0:00:01]} 14. f3 {[%emt 0:00:37]} Ne5 {[%emt 0:00:26]} 15. Rxd6 {[%emt 0:00:04]} Be6 {[%emt 0:00:05]} 16. f4 {[%emt 0:00:18]} Ng4 {[%emt 0:01:22]} 17. Be2 {[%emt 0:00:02]} Ne3 {[%emt 0:00:57]} 18. f5 {[%emt 0:00:26]} Bc4 {[%emt 0:00:22]} 19. Kd2 {[%emt 0:00:37]} Ke7 {[%emt 0:02:26]} 20. Kxe3 {[%emt 0:00:13]} Bxe2 {[%emt 0:00:13]} 21. e5 {[%emt 0:00:47]} Bg4 {[%emt 0:00:53]} 22. Kf4 {[%emt 0:00:06]} h5 {[%emt 0:01:28]} 23. h3 {[%emt 0:00:06]} g5+ {[%emt 0:00:01]} 24. Ke4 {[%emt 0:00:20]} Bxh3 {[%emt 0:00:58]} 25. f6+ {[%emt 0:00:09]} Kf8 {[%emt 0:00:12]} 26. gxh3 {[%emt 0:00:01]} Kg8 {[%emt 0:00:03]} 27. Rd7 1-0

[Event "RUS-chT Rapid Men 2018"]
[Site "Sochi"]
[Date "2018.10.08"]
[Round "1"]
[White "Remizov, Yaroslav"]
[Black "Cherenkov, Andrey"]
[Result "1/2-1/2"]
[ECO "B14"]
[WhiteElo "2315"]
[BlackElo "2226"]
[Annotator "NA RC"]
[PlyCount "87"]
[EventDate "2018.10.05"]
[EventType "swiss"]
[EventCountry "RUS"]
[SourceTitle "playchess.com"]
[Source "ChessBase"]
[SourceQuality "1"]
[TimeControl "900+10"]

1. e4 {[%emt 0:00:00]} c6 {[%emt 0:00:00]} 2. d4 {[%emt 0:00:00]} d5 {[%emt 0:00:00]} 3. exd5 {[%emt 0:00:00]} cxd5 {[%emt 0:00:00]} 4. c4 {[%emt 0:00:00]} Nf6 {[%emt 0:00:00]} 5. Nc3 $11 {[%emt 0:00:00] LiveBook: 9103 Games} g6 {[%emt 0:00:00]} 6. Qb3 {[%emt 0:00:28]} Bg7 {[%emt 0:00:00]} 7. cxd5 {[%emt 0:00:05]} O-O {[%emt 0:00:04]} 8. Be2 {[%emt 0:00:53]} Nbd7 {[%emt 0:01:36]} 9. Bf3 {[%emt 0:01:02]} Nb6 {[%emt 0:00:09]} 10. Nge2 {[%emt 0:00:13]} Bg4 {[%emt 0:00:07]} 11. Bxg4 {[%emt 0:01:04]} Nxg4 {[%emt 0:00:02]} 12. O-O {[%emt 0:00:41]} Qd7 {[%emt 0:00:04]} 13. Bg5 {[%emt 0:03:02]} Rfd8 {[%emt 0:00:38]} 14. h3 {[%emt 0:04:01]} Nf6 {[%emt 0:00:14]} 15. Rfe1 {[%emt 0:01:24]} Nfxd5 {[%emt 0:00:19]} 16. Nxd5 {[%emt 0:00:20]} Nxd5 {[%emt 0:01:34]} 17. Nc3 {[%emt 0:00:43]} Bxd4 {[%emt 0:01:30]} 18. Nxd5 {[%emt 0:00:34]} Qxd5 {[%emt 0:00:17]} 19. Bxe7 {[%emt 0:00:11]} Qxb3 {[%emt 0:00:49]} 20. axb3 {[%emt 0:00:02]} Rdc8 {[%emt 0:00:01]} 21. Re2 {[%emt 0:00:57]} Rc7 {[%emt 0:01:54]} 22. Rd1 {[%emt 0:00:37]} Bxb2 {[%emt 0:01:13]} 23. Bd6 {[%emt 0:01:40]} Rc1 {[%emt 0:00:02]} 24. Rxc1 {[%emt 0:00:00]} Bxc1 {[%emt 0:00:01]} 25. Re7 {[%emt 0:00:01]} b6 {[%emt 0:00:35]} 26. Be5 {[%emt 0:00:02]} Ba3 {[%emt 0:01:31]} 27. Rb7 {[%emt 0:00:02]} Bc5 {[%emt 0:00:11]} 28. Bb8 {[%emt 0:00:23]} a5 {[%emt 0:00:23]} 29. Ba7 {[%emt 0:00:13]} Rd8 {[%emt 0:02:24]} 30. Bxb6 {[%emt 0:00:02]} Rd1+ {[%emt 0:00:28]} 31. Kh2 {[%emt 0:00:01]} Bb4 {[%emt 0:01:09]} 32. Ra7 {[%emt 0:00:41]} Rd5 {[%emt 0:00:01]} 33. g3 {[%emt 0:00:34]} Kg7 {[%emt 0:00:04]} 34. Kg2 {[%emt 0:00:02]} Kf6 {[%emt 0:00:11]} 35. Kf3 {[%emt 0:00:13]} Ke6 {[%emt 0:00:23]} 36. g4 {[%emt 0:00:11]} h5 {[%emt 0:00:07]} 37. Ra8 {[%emt 0:00:25]} Rd3+ {[%emt 0:00:17]} 38. Kg2 {[%emt 0:00:00]} hxg4 {[%emt 0:00:06]} 39. hxg4 {[%emt 0:00:01]} Rxb3 {[%emt 0:00:20]} 40. Ra6 {[%emt 0:00:08]} Kd5 {[%emt 0:00:09]} 41. Ra7 {[%emt 0:00:02]} Kc6 {[%emt 0:00:47]} 42. Bxa5 {[%emt 0:00:18]} Bxa5 {[%emt 0:01:41]} 43. Rxa5 {[%emt 0:00:01]} Kd6 {[%emt 0:00:05]} 44. f3 {[%emt 0:00:06] Ke5} 1/2-1/2

[Event "RUS-chT Rapid Men 2018"]
[Site "Sochi"]
[Date "2018.10.08"]
[Round "1"]
[White "Taysayev, Timur"]
[Black "Usmanov, Vasily"]
[Result "1-0"]
[ECO "B57"]
[WhiteElo "2225"]
[BlackElo "2453"]
[Annotator "ChessBase"]
[PlyCount "61"]
[EventDate "2018.10.05"]
[EventType "swiss"]
[EventCountry "RUS"]
[SourceTitle "playchess.com"]
[Source "ChessBase"]
[SourceQuality "1"]
[TimeControl "900+10"]

1. e4 {[%emt 0:00:00]} c5 {[%emt 0:00:00]} 2. Nf3 {[%emt 0:00:00]} Nc6 {[%emt 0:00:00]} 3. d4 {[%emt 0:00:07]} cxd4 {[%emt 0:00:00]} 4. Nxd4 {[%emt 0:00:01]} Nf6 {[%emt 0:00:00]} 5. Nc3 {[%emt 0:00:02]} d6 {[%emt 0:00:00]} 6. Bc4 {[%emt 0:00:06]} Bd7 {[%emt 0:00:08]} 7. Bb3 {[%emt 0:00:08]} g6 {[%emt 0:00:10]} 8. f3 {[%emt 0:00:03]} Bg7 {[%emt 0:00:02]} 9. Be3 {[%emt 0:00:01]} a6 {[%emt 0:00:51]} 10. Qd2 {[%emt 0:01:56]} Rc8 {[%emt 0:00:53]} 11. O-O-O {[%emt 0:00:12]} Na5 {[%emt 0:01:04]} 12. Bh6 {[%emt 0:00:28]} O-O {[%emt 0:02:37]} 13. h4 {[%emt 0:02:14]} Nc4 {[%emt 0:00:20]} 14. Bxc4 {[%emt 0:00:16]} Rxc4 {[%emt 0:00:04]} 15. Bxg7 {[%emt 0:00:05]} Kxg7 {[%emt 0:00:03]} 16. h5 {[%emt 0:00:07]} Rh8 {[%emt 0:04:04]} 17. h6+ {[%emt 0:02:47]} Kf8 {[%emt 0:00:02]} 18. g4 {[%emt 0:00:07]} b5 {[%emt 0:02:59]} 19. Rhe1 {[%emt 0:02:28]} b4 {[%emt 0:01:51]} 20. Nd5 {[%emt 0:00:14]} e5 {[%emt 0:00:05]} 21. Qg5 {[%emt 0:00:59]} exd4 {[%emt 0:00:28]} 22. Nxf6 {[%emt 0:00:09]} Qe7 {[%emt 0:01:22]} 23. Nxd7+ {[%emt 0:01:57]} Qxd7 {[%emt 0:00:02]} 24. Rxd4 {[%emt 0:00:23]} Rxd4 {[%emt 0:00:21]} 25. Qf6 {[%emt 0:00:02]} Rc4 {[%emt 0:00:05]} 26. Qxh8+ {[%emt 0:00:12]} Ke7 {[%emt 0:00:01]} 27. e5 {[%emt 0:00:07]} Qc6 {[%emt 0:01:43]} 28. exd6+ {[%emt 0:01:04]} Kd7 {[%emt 0:00:14]} 29. Re7+ {[%emt 0:00:04]} Kxd6 {[%emt 0:00:01]} 30. Qd8+ {[%emt 0:00:02]} Kc5 {[%emt 0:00:03]} 31. Re5+ {[%emt 0:00:01] Kd5} 1-0

[Event "RUS-chT Rapid Men 2018"]
[Site "Sochi"]
[Date "2018.10.08"]
[Round "1"]
[White "Zhakamukhov, Eduard"]
[Black "Sychev, Klementy"]
[Result "0-1"]
[ECO "C60"]
[WhiteElo "2068"]
[BlackElo "2534"]
[Annotator "ChessBase"]
[PlyCount "56"]
[EventDate "2018.10.05"]
[EventType "swiss"]
[EventCountry "RUS"]
[SourceTitle "playchess.com"]
[Source "ChessBase"]
[SourceQuality "1"]
[TimeControl "900+10"]

1. e4 {[%emt 0:00:00]} e5 {[%emt 0:00:00]} 2. Nf3 {[%emt 0:00:00]} Nc6 {[%emt 0:00:00]} 3. Bb5 {[%emt 0:00:00]} g6 {[%emt 0:00:00]} 4. Bxc6 {[%emt 0:00:08]} dxc6 {[%emt 0:00:00]} 5. d4 {[%emt 0:00:01]} exd4 {[%emt 0:00:10]} 6. Qxd4 {[%emt 0:00:02]} Qxd4 {[%emt 0:00:25]} 7. Nxd4 {[%emt 0:00:01]} Bg7 {[%emt 0:00:01]} 8. c3 {[%emt 0:00:13]} Bd7 {[%emt 0:00:28]} 9. Be3 {[%emt 0:00:03]} c5 {[%emt 0:00:37]} 10. Ne2 {[%emt 0:00:42]} b6 {[%emt 0:00:02]} 11. Na3 {[%emt 0:01:21]} Ne7 {[%emt 0:00:12]} 12. Ng3 {[%emt 0:01:10]} O-O-O {[%emt 0:00:39]} 13. O-O-O {[%emt 0:00:30]} Be6 {[%emt 0:00:17]} 14. Kb1 {[%emt 0:00:37]} h5 {[%emt 0:00:09]} 15. h4 {[%emt 0:00:12]} Nc6 {[%emt 0:00:24]} 16. f4 {[%emt 0:00:54]} Bg4 {[%emt 0:00:10]} 17. Rxd8+ {[%emt 0:01:04]} Rxd8 {[%emt 0:00:03]} 18. Kc2 {[%emt 0:00:10]} a6 {[%emt 0:01:05]} 19. Nb1 {[%emt 0:04:09]} c4 {[%emt 0:00:12]} 20. e5 {[%emt 0:01:04]} Ne7 {[%emt 0:01:26]} 21. Nd2 {[%emt 0:00:28]} Nd5 {[%emt 0:00:04]} 22. Re1 {[%emt 0:00:14]} Bh6 {[%emt 0:00:14]} 23. Bd4 {[%emt 0:02:32]} Nxf4 {[%emt 0:00:28]} 24. Rf1 {[%emt 0:00:28]} Nxg2 {[%emt 0:00:47]} 25. Nxc4 {[%emt 0:01:38]} Be6 {[%emt 0:00:03]} 26. Na3 {[%emt 0:00:38]} Nxh4 {[%emt 0:00:13]} 27. b4 {[%emt 0:00:24]} Ng2 {[%emt 0:00:19]} 28. Nb1 {[%emt 0:00:26]} h4 {[%emt 0:00:09]} 0-1

[Event "RUS-chT Rapid Men 2018"]
[Site "Sochi"]
[Date "2018.10.08"]
[Round "2"]
[White "Paravyan, David"]
[Black "Moiseenko, Vadim"]
[Result "1/2-1/2"]
[ECO "C01"]
[WhiteElo "2629"]
[BlackElo "2492"]
[Annotator "RC"]
[PlyCount "91"]
[EventDate "2018.10.05"]
[EventType "swiss"]
[EventCountry "RUS"]
[SourceTitle "playchess.com"]
[Source "ChessBase"]
[SourceQuality "1"]
[TimeControl "900+10"]

1. d4 {[%emt 0:00:00]} e6 {[%emt 0:00:00]} 2. e4 {[%emt 0:00:00]} d5 {[%emt 0:00:00]} 3. exd5 {[%emt 0:00:00]} exd5 {[%emt 0:00:00]} 4. Bb5+ {[%emt 0:00:00]} c6 {[%emt 0:00:57]} 5. Bd3 {[%emt 0:00:00]} Bd6 {[%emt 0:00:07]} 6. Nf3 {[%emt 0:00:00]} Nf6 {[%emt 0:00:12]} 7. Qe2+ {[%emt 0:00:00]} Qe7 {[%emt 0:00:07]} 8. Qxe7+ {[%emt 0:00:01]} Kxe7 {[%emt 0:00:07]} 9. O-O {[%emt 0:00:03]} Re8 {[%emt 0:00:32]} 10. Re1+ {[%emt 0:00:02]} Kf8 {[%emt 0:00:03]} 11. Rxe8+ {[%emt 0:00:02]} Kxe8 {[%emt 0:00:19]} 12. Nc3 {[%emt 0:00:11]} h6 {[%emt 0:01:02]} 13. Ne2 {[%emt 0:00:20]} Bg4 {[%emt 0:00:06]} 14. Ne5 {[%emt 0:00:05]} Bxe2 {[%emt 0:00:45]} 15. Bxe2 {[%emt 0:00:01]} Nbd7 {[%emt 0:00:01]} 16. Bf4 {[%emt 0:00:23]} g5 {[%emt 0:00:33]} 17. Nxd7 {[%emt 0:01:39]} Kxd7 {[%emt 0:00:03]} 18. Be3 {[%emt 0:00:01]} Re8 {[%emt 0:00:20]} 19. Bd3 {[%emt 0:00:01]} Kc7 {[%emt 0:02:10]} 20. g3 {[%emt 0:01:02]} Ne4 {[%emt 0:01:36]} 21. g4 {[%emt 0:00:02]} Nf6 {[%emt 0:01:08]} 22. h3 {[%emt 0:00:01]} Nd7 {[%emt 0:00:13]} 23. Kg2 {[%emt 0:00:21]} Nf8 {[%emt 0:00:08]} 24. h4 {[%emt 0:00:02]} Ne6 {[%emt 0:00:03]} 25. Bf5 {[%emt 0:01:58]} Ng7 {[%emt 0:00:27]} 26. hxg5 {[%emt 0:00:52]} Nxf5 {[%emt 0:00:16]} 27. gxf5 {[%emt 0:00:01]} hxg5 {[%emt 0:00:01]} 28. Rh1 {[%emt 0:00:01]} f6 {[%emt 0:00:26]} 29. Rh7+ {[%emt 0:01:21]} Re7 {[%emt 0:01:50]} 30. Rh6 {[%emt 0:00:02]} Rf7 {[%emt 0:00:10]} 31. Kf3 {[%emt 0:00:00]} Be7 {[%emt 0:01:10]} 32. Kg4 {[%emt 0:00:04]} Kd7 {[%emt 0:00:05]} 33. Rh8 {[%emt 0:00:50]} Bd8 {[%emt 0:00:14]} 34. Kh5 {[%emt 0:00:05]} Re7 {[%emt 0:00:12]} 35. Kg6 {[%emt 0:00:07]} Re4 {[%emt 0:00:09]} 36. c3 {[%emt 0:01:36]} Rh4 {[%emt 0:01:40]} 37. Rxd8+ {[%emt 0:03:49]} Kxd8 {[%emt 0:00:01]} 38. Kxf6 {[%emt 0:00:01]} Ke8 {[%emt 0:00:01]} 39. Bxg5 {[%emt 0:01:32]} Rh2 {[%emt 0:00:43]} 40. f4 {[%emt 0:00:03]} Kf8 {[%emt 0:00:41]} 41. Kg6 {[%emt 0:00:23]} Rxb2 {[%emt 0:00:15]} 42. f6 {[%emt 0:00:02]} Rg2 {[%emt 0:00:49]} 43. f7 {[%emt 0:00:05]} b6 {[%emt 0:00:25]} 44. Kf6 {[%emt 0:01:50]} Rh2 {[%emt 0:00:01]} 45. Ke6 {[%emt 0:00:04]} Re2+ {[%emt 0:00:02]} 46. Kf6 {[%emt 0:00:01]} 1/2-1/2